[Event "Karel Janecek Open 2025"]
[Site "Prague"]
[Date "2025.03.05"]
[Round "7.3"]
[White "Grigoryan, Karen H."]
[Black "Agmanov, Zhandos"]
[Result "1-0"]
[Annotator "RC"]
[ECO "A00"]
[WhiteElo "2554"]
[BlackElo "2469"]
[PlyCount "59"]
[EventDate "2025.02.21"]
[EventType "swiss"]
[EventCountry "CZE"]
[SourceTitle "playchess.com"]
[Source "ChessBase"]
[SourceQuality "1"]
[TimeControl "40/5400+30:1800+30"]

1. g3 {[%emt 0:01:13]} Nf6 {[%emt 0:04:40]} 2. Bg2 {[%emt 0:00:05]} d5 {[%emt 0:00:07]} 3. d3 {[%emt 0:00:30]} e6 {[%emt 0:00:44]} 4. f4 {[%emt 0:00:38]} c5 {[%emt 0:03:57]} 5. e4 {[%emt 0:00:37]} dxe4 {[%emt 0:08:50]} 6. dxe4 {[%emt 0:00:06]} Qxd1+ {[%emt 0:00:09]} 7. Kxd1 {[%emt 0:00:05]} e5 {[%emt 0:00:19]} 8. c3 {[%emt 0:01:40]} Bd7 {[%emt 0:03:13]} 9. Nd2 {[%emt 0:02:27]} Bc6 {[%emt 0:02:25]} 10. Ngf3 {[%emt 0:02:14]} Nxe4 {[%emt 0:24:12]} 11. Re1 {[%emt 0:03:28]} Nxd2 {[%emt 0:00:17]} 12. Bxd2 {[%emt 0:00:24]} e4 {[%emt 0:13:20]} 13. Ne5 {[%emt 0:06:08]} f5 {[%emt 0:03:59]} 14. g4 {[%emt 0:00:14]} Bd6 {[%emt 0:02:34]} 15. Nxc6 {[%emt 0:05:40]} Nxc6 {[%emt 0:00:13]} 16. gxf5 {[%emt 0:00:06]} O-O-O {[%emt 0:00:52]} 17. Rxe4 {[%emt 0:00:26]} Ne7 {[%emt 0:11:38]} 18. Bh3 {[%emt 0:00:33]} Kc7 {[%emt 0:00:03]} 19. Kc2 {[%emt 0:04:31]} Rdf8 {[%emt 0:01:32]} 20. Rg1 {[%emt 0:00:47]} g6 {[%emt 0:00:15]} 21. fxg6 {[%emt 0:01:07]} hxg6 {[%emt 0:00:05]} 22. Rg3 {[%emt 0:02:50]} Rh4 {[%emt 0:17:00]} 23. Re6 {[%emt 0:05:21]} Rfh8 {[%emt 0:01:04]} 24. Bg4 {[%emt 0:00:08]} Rxh2 {[%emt 0:00:21]} 25. Rd3 {[%emt 0:00:06]} Nc8 {[%emt 0:00:19]} 26. Rf6 {[%emt 0:01:01]} Be7 {[%emt 0:00:51]} 27. Rd7+ {[%emt 0:00:19]} Kb8 {[%emt 0:00:04]} 28. Bf3 {[%emt 0:00:10]} Rf2 {[%emt 0:00:55]} 29. Rxb7+ {[%emt 0:00:24]} Ka8 {[%emt 0:00:03]} 30. Bc6 {[%emt 0:00:12]} 1-0

[Event "Karel Janecek Open 2025"]
[Site "Prague"]
[Date "2025.03.05"]
[Round "7.4"]
[White "Zhao, Yuanhe"]
[Black "Ghazarian, Kirk"]
[Result "1/2-1/2"]
[Annotator "ChessBase"]
[ECO "D30"]
[WhiteElo "2466"]
[BlackElo "2493"]
[PlyCount "132"]
[EventDate "2025.02.21"]
[EventType "swiss"]
[EventCountry "CZE"]
[SourceTitle "playchess.com"]
[Source "ChessBase"]
[SourceQuality "1"]
[TimeControl "40/5400+30:1800+30"]

1. Nf3 {[%emt 0:00:28]} d5 {[%emt 0:00:25]} 2. g3 {[%emt 0:00:40]} Nf6 {[%emt 0:00:08]} 3. Bg2 {[%emt 0:00:09]} e6 {[%emt 0:00:04]} 4. O-O {[%emt 0:00:40]} Be7 {[%emt 0:00:05]} 5. c4 {[%emt 0:00:04]} O-O {[%emt 0:00:12]} 6. d4 {[%emt 0:00:07]} c5 {[%emt 0:00:08]} 7. cxd5 {[%emt 0:03:49]} exd5 {[%emt 0:00:05]} 8. Nc3 {[%emt 0:00:46]} h6 {[%emt 0:00:43]} 9. dxc5 {[%emt 0:02:21]} Bxc5 {[%emt 0:00:13]} 10. b3 {[%emt 0:00:22]} Nc6 {[%emt 0:04:42]} 11. Bb2 {[%emt 0:00:06]} Re8 {[%emt 0:08:39]} 12. Rc1 {[%emt 0:00:45]} Be6 {[%emt 0:11:06]} 13. Na4 {[%emt 0:01:00]} Be7 {[%emt 0:00:08]} 14. Nd4 {[%emt 0:09:29]} Bd7 {[%emt 0:10:46]} 15. Nc5 {[%emt 0:07:43]} Bxc5 {[%emt 0:07:43]} 16. Rxc5 {[%emt 0:00:12]} Qb6 {[%emt 0:00:20]} 17. Rc1 {[%emt 0:01:55]} Ne4 {[%emt 0:01:40]} 18. a3 {[%emt 0:27:16]} a5 {[%emt 0:04:08]} 19. Ba1 {[%emt 0:04:43]} Rac8 {[%emt 0:06:21]} 20. Rb1 {[%emt 0:04:04]} Qc5 {[%emt 0:06:20]} 21. Nxc6 {[%emt 0:05:37]} bxc6 {[%emt 0:00:35]} 22. b4 {[%emt 0:01:45]} axb4 {[%emt 0:01:40]} 23. axb4 {[%emt 0:00:05]} Qb6 {[%emt 0:01:31]} 24. Bd4 {[%emt 0:03:39]} Qb5 {[%emt 0:01:25]} 25. Re1 {[%emt 0:01:05]} Bf5 {[%emt 0:02:57]} 26. Rb2 {[%emt 0:03:20]} Nd6 {[%emt 0:01:22]} 27. Bc5 {[%emt 0:00:55]} Nc4 {[%emt 0:03:51]} 28. Ra2 {[%emt 0:00:05]} Be4 {[%emt 0:01:02]} 29. Bf1 {[%emt 0:01:24]} Ra8 {[%emt 0:10:23]} 30. Rxa8 {[%emt 0:05:10]} Rxa8 {[%emt 0:00:04]} 31. f3 {[%emt 0:00:06]} Bg6 {[%emt 0:06:14]} 32. Qd4 {[%emt 0:00:24]} Na3 {[%emt 0:01:31]} 33. Ra1 {[%emt 0:00:49]} Qb7 {[%emt 0:00:51]} 34. h4 {[%emt 0:02:54]} Kh7 {[%emt 0:01:41]} 35. Qf4 {[%emt 0:02:04]} Nb5 {[%emt 0:00:56]} 36. Rxa8 {[%emt 0:01:28]} Qxa8 {[%emt 0:00:01]} 37. g4 {[%emt 0:00:45]} h5 {[%emt 0:02:00]} 38. gxh5 {[%emt 0:04:03]} Bxh5 {[%emt 0:00:19]} 39. Qg5 {[%emt 0:00:09]} Bg6 {[%emt 0:00:24]} 40. h5 {[%emt 0:00:49]} Bc2 {[%emt 0:02:03]} 41. Bh3 {[%emt 0:30:58]} Kh8 {[%emt 0:19:00]} 42. h6 {[%emt 0:00:00]} Qa1+ {[%emt 0:06:52]} 43. Kf2 {[%emt 0:00:00]} Bg6 {[%emt 0:00:52]} 44. Bd7 {[%emt 0:00:00]} gxh6 {[%emt 0:00:26]} 45. Qxh6+ {[%emt 0:00:00]} Kg8 {[%emt 0:00:01]} 46. Qf4 {[%emt 0:00:00]} Qb2 {[%emt 0:02:13]} 47. Bxc6 {[%emt 0:02:47]} Nc3 {[%emt 0:00:08]} 48. Bb5 {[%emt 0:01:07]} Nxb5 {[%emt 0:01:46]} 49. Qb8+ {[%emt 0:00:03]} Kh7 {[%emt 0:00:06]} 50. Qxb5 {[%emt 0:00:02]} d4 {[%emt 0:00:56]} 51. Qc4 {[%emt 0:05:26]} d3 {[%emt 0:00:39]} 52. Qh4+ {[%emt 0:00:03]} Kg8 {[%emt 0:00:03]} 53. Qd8+ {[%emt 0:00:08]} Kh7 {[%emt 0:00:06]} 54. Qh4+ {[%emt 0:01:07]} Kg8 {[%emt 0:00:02]} 55. Qe7 {[%emt 0:01:01]} Kh7 {[%emt 0:03:01]} 56. b5 {[%emt 0:01:06]} dxe2 {[%emt 0:04:18]} 57. Qxe2 {[%emt 0:00:09]} Qxe2+ {[%emt 0:01:57]} 58. Kxe2 {[%emt 0:00:03]} Bf5 {[%emt 0:00:03]} 59. Ke3 {[%emt 0:00:12]} Kg6 {[%emt 0:00:20]} 60. Kd4 {[%emt 0:00:46]} Bd7 {[%emt 0:00:41]} 61. Kc4 {[%emt 0:00:04]} Be6+ {[%emt 0:00:54]} 62. Kb4 {[%emt 0:00:02]} Bd5 {[%emt 0:00:11]} 63. f4 {[%emt 0:00:04]} Kf5 {[%emt 0:00:10]} 64. Be3 {[%emt 0:00:03]} Ke6 {[%emt 0:00:13]} 65. Kc5 {[%emt 0:00:01]} Be4 {[%emt 0:00:18]} 66. Kb6 {[%emt 0:00:04]} Kd7 {[%emt 0:00:05]} 1/2-1/2

[Event "Karel Janecek Open 2025"]
[Site "Prague"]
[Date "2025.03.05"]
[Round "7.5"]
[White "Neuman, Petr"]
[Black "Ioannidis, Evgenios"]
[Result "0-1"]
[Annotator "RC"]
[ECO "C45"]
[WhiteElo "2436"]
[BlackElo "2484"]
[PlyCount "86"]
[EventDate "2025.02.21"]
[EventType "swiss"]
[EventCountry "CZE"]
[SourceTitle "playchess.com"]
[Source "ChessBase"]
[SourceQuality "1"]
[TimeControl "40/5400+30:1800+30"]

1. e4 {[%emt 0:00:04]} e5 {[%emt 0:01:50]} 2. Nf3 {[%emt 0:00:11]} Nc6 {[%emt 0:00:06]} 3. d4 {[%emt 0:00:14]} exd4 {[%emt 0:00:28]} 4. Nxd4 {[%emt 0:00:04]} Qf6 {[%emt 0:00:16]} 5. Nf3 {[%emt 0:00:37]} Bb4+ {[%emt 0:00:07]} 6. c3 {[%emt 0:00:33]} Bc5 {[%emt 0:00:04]} 7. Be2 {[%emt 0:00:28]} h6 {[%emt 0:01:36]} 8. O-O {[%emt 0:00:21]} Nge7 {[%emt 0:00:28]} 9. Qc2 {[%emt 0:01:59]} d6 {[%emt 0:00:05]} 10. b4 {[%emt 0:00:14]} Bb6 {[%emt 0:00:04]} 11. a4 {[%emt 0:00:35]} a6 {[%emt 0:00:04]} 12. Nbd2 {[%emt 0:00:19]} Ne5 {[%emt 0:02:51]} 13. Nxe5 {[%emt 0:05:09]} dxe5 {[%emt 0:00:05]} 14. Nc4 {[%emt 0:00:15]} Ba7 {[%emt 0:00:05]} 15. b5 {[%emt 0:04:55]} O-O {[%emt 0:00:07]} 16. bxa6 {[%emt 0:01:50]} bxa6 {[%emt 0:00:06]} 17. a5 {[%emt 0:01:12]} Ng6 {[%emt 0:00:43]} 18. Be3 {[%emt 0:01:33]} Bxe3 {[%emt 0:10:03]} 19. Nxe3 {[%emt 0:03:25]} Nf4 {[%emt 0:00:13]} 20. Bc4 {[%emt 0:01:31]} Be6 {[%emt 0:00:14]} 21. Qa2 {[%emt 0:02:05]} Rad8 {[%emt 0:10:16]} 22. Rad1 {[%emt 0:03:20]} Bh3 {[%emt 0:17:43]} 23. f3 {[%emt 0:07:08]} Qg5 {[%emt 0:13:56]} 24. Kh1 {[%emt 0:05:32]} Be6 {[%emt 0:00:05]} 25. Bxe6 {[%emt 0:06:43]} Nxe6 {[%emt 0:01:15]} 26. Qe2 {[%emt 0:02:12]} h5 {[%emt 0:00:11]} 27. Rfe1 {[%emt 0:04:29]} g6 {[%emt 0:00:57]} 28. Nd5 {[%emt 0:01:38]} c6 {[%emt 0:04:39]} 29. Nb4 {[%emt 0:00:57]} Nf4 {[%emt 0:07:24]} 30. Qf1 {[%emt 0:00:48]} h4 {[%emt 0:00:12]} 31. h3 {[%emt 0:02:18]} Rb8 {[%emt 0:14:48]} 32. Qf2 {[%emt 0:01:42]} c5 {[%emt 0:00:04]} 33. Nxa6 {[%emt 0:04:31]} Rb5 {[%emt 0:01:05]} 34. Nc7 {[%emt 0:00:34]} Rxa5 {[%emt 0:00:06]} 35. Nd5 {[%emt 0:00:04]} Rfa8 {[%emt 0:01:35]} 36. Nxf4 {[%emt 0:00:18]} Qxf4 {[%emt 0:00:04]} 37. Re2 {[%emt 0:02:26]} Ra1 {[%emt 0:00:05]} 38. Qe1 {[%emt 0:01:31]} R1a3 {[%emt 0:04:05]} 39. Red2 {[%emt 0:03:42]} Kg7 {[%emt 0:00:19]} 40. Rd7 {[%emt 0:02:24]} Ra2 {[%emt 0:01:20]} 41. Qf1 {[%emt 0:31:26]} Rc2 {[%emt 0:31:23]} 42. Qc4 {[%emt 0:00:17]} Raa2 {[%emt 0:00:20]} 43. Rg1 {[%emt 0:00:21]} Qxf3 {[%emt 0:00:30]} 0-1

[Event "Karel Janecek Open 2025"]
[Site "Prague"]
[Date "2025.03.05"]
[Round "7.6"]
[White "Vykouk, Jan"]
[Black "Eren, Ataberk"]
[Result "1-0"]
[Annotator "ChessBase"]
[ECO "A11"]
[WhiteElo "2478"]
[BlackElo "2402"]
[PlyCount "97"]
[EventDate "2025.02.21"]
[EventType "swiss"]
[EventCountry "CZE"]
[SourceTitle "playchess.com"]
[Source "ChessBase"]
[SourceQuality "1"]
[TimeControl "40/5400+30:1800+30"]

1. c4 {[%emt 0:00:04]} Nf6 {[%emt 0:03:22]} 2. Nf3 {[%emt 0:00:36]} c6 {[%emt 0:00:24]} 3. g3 {[%emt 0:00:15]} d5 {[%emt 0:02:04]} 4. Bg2 {[%emt 0:00:53]} Bg4 {[%emt 0:01:48]} 5. Ne5 {[%emt 0:01:09]} Bf5 {[%emt 0:10:57]} 6. cxd5 {[%emt 0:10:18]} cxd5 {[%emt 0:00:44]} 7. Qa4+ {[%emt 0:02:57]} Bd7 {[%emt 0:05:04]} 8. Nxd7 {[%emt 0:01:26]} Qxd7 {[%emt 0:01:16]} 9. Qxd7+ {[%emt 0:00:21]} Nbxd7 {[%emt 0:01:24]} 10. Nc3 {[%emt 0:00:22]} e6 {[%emt 0:01:09]} 11. d3 {[%emt 0:03:15]} Bd6 {[%emt 0:04:45]} 12. O-O {[%emt 0:00:57]} O-O {[%emt 0:00:45]} 13. Bd2 {[%emt 0:02:51]} Rac8 {[%emt 0:02:33]} 14. Rfc1 {[%emt 0:06:23]} a6 {[%emt 0:00:29]} 15. Nd1 {[%emt 0:06:24]} Bc5 {[%emt 0:06:33]} 16. Kf1 {[%emt 0:02:23]} Ng4 {[%emt 0:07:54]} 17. h3 {[%emt 0:01:13]} Nge5 {[%emt 0:00:25]} 18. Rab1 {[%emt 0:09:18]} b5 {[%emt 0:02:55]} 19. b4 {[%emt 0:00:44]} Be7 {[%emt 0:01:10]} 20. a3 {[%emt 0:00:22]} Nb6 {[%emt 0:01:39]} 21. f4 {[%emt 0:03:04]} Ned7 {[%emt 0:03:41]} 22. e4 {[%emt 0:06:14]} dxe4 {[%emt 0:14:51]} 23. Bxe4 {[%emt 0:00:11]} Nd5 {[%emt 0:13:46]} 24. Bxd5 {[%emt 0:01:52]} exd5 {[%emt 0:01:32]} 25. Ne3 {[%emt 0:00:06]} Nb6 {[%emt 0:01:03]} 26. Bc3 {[%emt 0:00:19]} Rfd8 {[%emt 0:04:12]} 27. Bd4 {[%emt 0:01:40]} Na4 {[%emt 0:00:23]} 28. Nf5 {[%emt 0:08:05]} Bf8 {[%emt 0:00:49]} 29. Rxc8 {[%emt 0:00:51]} Rxc8 {[%emt 0:00:03]} 30. Bxg7 {[%emt 0:00:37]} Rc2 {[%emt 0:00:48]} 31. Bf6 {[%emt 0:01:03]} h5 {[%emt 0:00:33]} 32. Re1 {[%emt 0:03:07]} Kh7 {[%emt 0:00:44]} 33. Bd4 {[%emt 0:00:09]} Kg6 {[%emt 0:01:15]} 34. Nh4+ {[%emt 0:00:26]} Kh7 {[%emt 0:00:07]} 35. Re5 {[%emt 0:00:23]} f6 {[%emt 0:00:50]} 36. Rxh5+ {[%emt 0:00:31]} Kg8 {[%emt 0:00:09]} 37. Rxd5 {[%emt 0:02:16]} Ra2 {[%emt 0:00:04]} 38. Ng6 {[%emt 0:01:23]} Bg7 {[%emt 0:01:11]} 39. f5 {[%emt 0:02:20]} Rxa3 {[%emt 0:00:04]} 40. Rd8+ {[%emt 0:00:10]} Kf7 {[%emt 0:00:28]} 41. Rd7+ {[%emt 0:30:35]} Kg8 {[%emt 0:30:04]} 42. Nf4 {[%emt 0:04:25]} Bh8 {[%emt 0:01:53]} 43. h4 {[%emt 0:02:08]} Rb3 {[%emt 0:00:13]} 44. h5 {[%emt 0:00:47]} Bg7 {[%emt 0:00:04]} 45. Ne6 {[%emt 0:00:46]} Bh6 {[%emt 0:00:08]} 46. Bxf6 {[%emt 0:00:28]} Rxb4 {[%emt 0:00:07]} 47. Bd4 {[%emt 0:00:56]} Rb1+ {[%emt 0:00:48]} 48. Kg2 {[%emt 0:02:37]} Rd1 {[%emt 0:00:34]} 49. f6 {[%emt 0:00:22]} 1-0

[Event "Karel Janecek Open 2025"]
[Site "Prague"]
[Date "2025.03.05"]
[Round "7.7"]
[White "Noe, Christopher"]
[Black "Kistrup, Nicolai"]
[Result "1/2-1/2"]
[Annotator "TA"]
[ECO "D27"]
[WhiteElo "2511"]
[BlackElo "2374"]
[PlyCount "87"]
[EventDate "2025.02.21"]
[EventType "swiss"]
[EventCountry "CZE"]
[SourceTitle "playchess.com"]
[Source "ChessBase"]
[SourceQuality "1"]
[TimeControl "40/5400+30:1800+30"]

{[%evp 22,87,33,22,59,56,95,42,53,40,41,39,59,58,65,68,61,70,71,68,74,64,58,49,61,35,29,43,76,70,77,0,56,33,36,41,43,38,31,37,43,0,34,16,24,16,16,26,21,21,33,33,43,13,36,36,36,33,33,36,29,0,9,0,27,33,41,0]} 1. Nf3 {[%emt 0:00:47]} d5 {[%emt 0:00:09]} 2. d4 {[%emt 0:00:08]} Nf6 {[%emt 0:00:13]} 3. c4 {[%emt 0:00:19]} dxc4 {[%emt 0:00:57]} 4. e3 {[%emt 0:00:43]} e6 {[%emt 0:00:38]} 5. Bxc4 {[%emt 0:00:13]} a6 {[%emt 0:00:28]} 6. O-O {[%emt 0:00:11]} c5 {[%emt 0:00:09]} 7. dxc5 {[%emt 0:05:03]} Bxc5 {[%emt 0:00:17]} 8. Qxd8+ {[%emt 0:00:10]} Kxd8 {[%emt 0:00:04]} 9. Be2 {[%emt 0:04:20]} Ke7 {[%emt 0:00:21]} 10. b3 {[%emt 0:00:26]} b6 {[%emt 0:12:16]} 11. Ne5 {[%emt 0:10:54]} Bb7 {[%emt 0:04:01]} 12. Nd2 {[%emt 0:00:15]} Ne4 {[%emt 0:16:56] D27: Queen's Gambit Accepted: Classical main line: 7 e4!? and 7 a4.} 13. Nd3 {[%emt 0:18:51]} Nd7 {[%emt 0:19:04]} 14. Nxe4 {[%emt 0:05:48]} (14. Nxc5 $16 bxc5 15. Nc4) 14... Bxe4 $14 {[%emt 0:00:05]} 15. Nxc5 {[%emt 0:00:12]} Nxc5 {[%emt 0:00:59]} 16. Ba3 {[%emt 0:01:21] And now b4 would win.} a5 {[%emt 0:04:35]} 17. f3 $146 {[%emt 0:08:37]} (17. Rac1 Rac8 18. f3 Bb7 19. b4 axb4 20. Bxb4 Rhd8 21. a4 Ke8 22. a5 Ba6 23. Bxa6 Nxa6 24. Bc3 bxa5 25. Bxa5 Rxc1 26. Rxc1 Rd5 {½-½ Pechac,J (2498)-Bochnicka,V (2151) Skalica Masters op 2020 (1)}) 17... Bb7 {[%emt 0:02:18]} 18. Rfc1 {[%emt 0:00:08]} Rhc8 {[%emt 0:02:03][%cal Bh8c8,Bc8c7,Bc7d7][%mdl 32]} 19. Rc2 {[%emt 0:04:18]} Rc7 {[%emt 0:04:18]} 20. Rac1 {[%emt 0:02:54][%cal Ra3c5]} Rac8 {[%emt 0:00:26]} 21. Bb5 {[%emt 0:00:48]} f6 {[%emt 0:10:02]} 22. e4 {[%emt 0:16:23]} Kf7 {[%emt 0:03:17]} 23. Rd1 {[%emt 0:00:11]} Bc6 {[%emt 0:06:19]} 24. Bc4 {[%emt 0:07:59]} Rd7 {[%emt 0:00:28]} 25. Rdc1 {[%emt 0:06:28]} Bb7 {[%emt 0:00:36]} 26. Bb5 {[%emt 0:00:40]} Rdc7 {[%emt 0:00:21]} 27. Rd2 {[%emt 0:01:30]} Bc6 {[%emt 0:01:34]} 28. Bf1 {[%emt 0:00:05]} Be8 {[%emt 0:05:05]} 29. Rdc2 {[%emt 0:00:20]} Rc6 {[%emt 0:03:24]} 30. Bb5 {[%emt 0:00:17]} R6c7 {[%emt 0:00:16]} 31. Bf1 {[%emt 0:00:30]} Rc6 {[%emt 0:00:03]} 32. b4 {[%emt 0:01:09]} axb4 {[%emt 0:00:15]} 33. Bxb4 {[%emt 0:00:02]} Na4 {[%emt 0:02:46]} 34. Rxc6 {[%emt 0:02:24]} Rxc6 {[%emt 0:00:05]} 35. Rd1 {[%emt 0:00:58]} Rc2 {[%emt 0:01:59]} 36. a3 {[%emt 0:00:05]} Nc3 {[%emt 0:00:57]} 37. Rd8 {[%emt 0:01:29]} Ne2+ {[%emt 0:00:33]} 38. Bxe2 {[%emt 0:00:30]} Rxe2 {[%emt 0:00:04][%mdl 4096] Endgame KRB-KRB} 39. Rb8 {[%emt 0:00:13]} b5 {[%emt 0:00:41]} 40. Rb7+ {[%emt 0:00:04]} Kg8 {[%emt 0:00:53]} 41. Rb8 {[%emt 0:30:27]} Kf7 {[%emt 0:02:42]} 42. Rb7+ {[%emt 0:00:00]} Kg8 {[%emt 0:00:32]} 43. Re7 {[%emt 0:00:00][%csl LRe6,LRe8]} Bf7 {[%emt 0:01:50]} 44. Rb7 {[%emt 0:00:00] Weighted Error Value: White=0.10 (very precise) /Black=0.06 (flawless)   Mistake:       	White=1     	---        Inaccurate:     	White=3     	Black=2      OK:         	White=15    	Black=14     Best:        	---       	Black=3} 1/2-1/2

[Event "Karel Janecek Open 2025"]
[Site "Prague"]
[Date "2025.03.05"]
[Round "7.8"]
[White "Polyakov, Maxim"]
[Black "Isik, Alparslan"]
[Result "0-1"]
[Annotator "TA"]
[ECO "A28"]
[WhiteElo "2327"]
[BlackElo "2477"]
[PlyCount "92"]
[EventDate "2025.02.21"]
[EventType "swiss"]
[EventCountry "CZE"]
[SourceTitle "playchess.com"]
[Source "ChessBase"]
[SourceQuality "1"]
[TimeControl "40/5400+30:1800+30"]

{[%evp 9,92,-29,-3,-19,7,0,7,0,0,0,0,-2,0,0,0,-23,7,0,0,0,12,0,4,-6,-6,0,-8,-4,0,0,12,-10,-21,-62,-62,-62,-62,-65,-22,-23,-32,-27,-36,-28,-44,-37,-27,-51,-53,-42,-54,-89,-67,-65,-66,-68,-75,-90,-88,-130,-119,-139,-149,-146,-148,-187,-187,-200,-187,-248,-231,-331,-331,-335,-316,-1046,-1005,-1677,-3000,-2629,-2330,-2075,-1997,-1513,-1370]} 1. c4 {[%emt 0:01:54]} e5 {[%emt 0:01:29]} 2. Nc3 {[%emt 0:00:00]} Nc6 {[%emt 0:01:45]} 3. Nf3 {[%emt 0:00:00]} Nf6 {[%emt 0:00:11]} 4. h3 {[%emt 0:00:00]} Bb4 {[%emt 0:00:58]} 5. Nd5 {[%emt 0:00:00]} Bd6 $146 {[%emt 0:02:08]} (5... Bc5 6. e3 e4 7. d4 exd3 8. Bxd3 Nb4 9. Nxb4 Bxb4+ 10. Bd2 Qe7 11. Bxb4 Qxb4+ {½-½ Ivanchuk,V (2678)-Sarana,A (2685) Chess.com Rapid Wk2 Swiss 2022 (9)}) 6. d3 {[%emt 0:00:00] A28: English Opening: Four Knights Variation.} h6 {[%emt 0:01:03]} 7. e4 {[%emt 0:00:00]} O-O {[%emt 0:00:33]} 8. Be2 {[%emt 0:00:00] The position is equal.} Bc5 {[%emt 0:02:17]} 9. O-O {[%emt 0:00:00][%cal Of3e5]} d6 {[%emt 0:00:09]} 10. Be3 {[%emt 0:00:17]} Be6 {[%emt 0:03:31]} 11. a3 {[%emt 0:01:22]} a5 {[%emt 0:00:16]} 12. Rb1 {[%emt 0:00:06]} Nd4 {[%emt 0:03:39]} 13. Bxd4 {[%emt 0:09:23]} Bxd4 {[%emt 0:00:29]} 14. Nxd4 {[%emt 0:00:07]} exd4 {[%emt 0:00:12]} 15. Nxf6+ {[%emt 0:01:58]} Qxf6 {[%emt 0:00:03]} 16. f4 {[%emt 0:01:54] Not much happening anymore} a4 {[%emt 0:04:02]} 17. Bg4 {[%emt 0:00:54]} Bxg4 {[%emt 0:02:02]} 18. Qxg4 {[%emt 0:00:02]} Ra6 {[%emt 0:00:10]} 19. Qd7 {[%emt 0:01:20]} Qd8 {[%emt 0:01:33]} 20. Qxd8 {[%emt 0:02:06]} Rxd8 $11 {[%emt 0:00:03][%mdl 4096] Endgame KRR-KRR} 21. b4 {[%emt 0:00:02]} axb3 {[%emt 0:00:24]} 22. Rxb3 {[%emt 0:00:00]} b6 {[%emt 0:00:12]} 23. Ra1 {[%emt 0:00:15]} Ra5 {[%emt 0:01:33]} 24. Rb5 {[%emt 0:00:53]} Rda8 {[%emt 0:01:18]} 25. Rd5 {[%emt 0:07:08]} Rxa3 {[%emt 0:04:05]} 26. Rxa3 {[%emt 0:00:28]} Rxa3 {[%emt 0:00:05]} 27. Rxd4 {[%emt 0:00:03] KR-KR} Kf8 {[%emt 0:02:11]} 28. e5 {[%emt 0:00:48]} dxe5 {[%emt 0:00:43]} 29. fxe5 {[%emt 0:02:04]} Ke7 {[%emt 0:00:10] Repels Rd7+} 30. Rd5 {[%emt 0:00:46]} Ke6 {[%emt 0:03:32]} 31. Kf2 {[%emt 0:01:19]} Ra5 {[%emt 0:00:39]} 32. Rd8 {[%emt 0:00:19]} Rxe5 {[%emt 0:00:37]} 33. Rg8 {[%emt 0:02:51]} g6 {[%emt 0:00:18]} 34. Rc8 {[%emt 0:01:30]} Kd7 {[%emt 0:00:31]} 35. Rf8 {[%emt 0:00:34] [#]} Re7 $1 {[%emt 0:00:04]} 36. g4 {[%emt 0:01:51]} c6 {[%emt 0:00:38]} 37. Rh8 {[%emt 0:06:12]} b5 {[%emt 0:00:28]} 38. cxb5 {[%emt 0:06:31]} cxb5 {[%emt 0:00:02]} 39. Rb8 {[%emt 0:00:02]} (39. h4 $142) 39... Kc6 $19 {[%emt 0:00:14]} 40. d4 {[%emt 0:00:13]} (40. Rc8+ $142 Kb7 41. Rd8) 40... Rb7 {[%emt 0:11:11]} 41. d5+ {[%emt 0:30:17]} Kc7 {[%emt 0:30:10]} (41... Kxd5 $2 {is the wrong capture.} 42. Rxb7 Ke6 43. Ke3 $18 (43. Rxb5 Kf6 $18)) 42. Ra8 {[%emt 0:00:16]} (42. Rxb7+ Kxb7 43. h4 Kc7 $19) (42. Rf8 Kd6 43. Ke3) 42... b4 {[%emt 0:00:09] [#] Threatens to win with ...b3. Black is clearly winning.} 43. Ke3 {[%emt 0:00:06]} b3 {[%emt 0:00:05] ( -> ...b2)} 44. Ra1 {[%emt 0:00:04]} b2 {[%emt 0:00:05]} 45. Rb1 {[%emt 0:00:01]} Kd6 {[%emt 0:00:12]} 46. Kd4 {[%emt 0:00:01]} f5 {[%emt 0:00:08] Weighted Error Value: White=0.34/Black=0.05 (flawless)   Mistake:       	White=3     	---        Inaccurate:     	White=4     	Black=3      OK:         	White=9     	Black=17     Best:        	---       	Black=4} 0-1